bitfinex/quotes_BTCUSD_20241119
["timestamp","ask_amount","ask_price","bid_price","bid_amount"]
[1732029962259,0.02033389,91813.0,91809.0,0.10892]
[1732029962489,0.153916,91814.0,91811.0,0.108918]
[1732029962490,0.02033389,91812.0,91811.0,0.108918]
[1732029962709,0.045,91814.0,91807.0,0.217846]
[1732029962951,0.0008549,91815.0,91807.0,0.217846]
[1732029963157,0.0008549,91815.0,91814.0,0.108915]
[1732029963371,0.02118589,91815.0,91814.0,0.108915]
[1732029963581,0.0008549,91815.0,91814.0,0.108915]
[1732029963817,0.02118264,91815.0,91814.0,0.108915]
[1732029964042,0.0008549,91815.0,91814.0,0.108915]
[1732029964279,0.02118734,91815.0,91814.0,0.108915]
[1732029964570,0.0008549,91815.0,91814.0,0.108915]
[1732029965056,0.0008549,91815.0,91793.0,0.02201708]
[1732029965057,0.01,91811.0,91793.0,0.02201708]
[1732029965264,0.108933,91799.0,91798.0,0.16381805]
[1732029965717,0.108941,91793.0,91785.0,0.2179]
[1732029965967,0.023,91808.0,91787.0,0.18556115]
[1732029966210,0.108926,91805.0,91798.0,0.217869]
[1732029966468,0.02033568,91804.0,91788.0,0.217891]
[1732029966697,0.217836,91812.0,91788.0,0.10906255]
[1732029966909,0.5409,91818.0,91787.0,0.18556115]
[1732029966910,0.217843,91809.0,91787.0,0.18556115]
[1732029967195,0.10893,91802.0,91794.0,0.217878]
[1732029967385,0.108934,91799.0,91794.0,0.108939]
[1732029967605,0.02374592,91801.0,91794.0,0.108939]
[1732029967606,0.108934,91798.0,91794.0,0.108939]
[1732029967828,0.1292792,91798.0,91794.0,0.108939]
[1732029968059,0.0203452,91797.0,91791.0,0.217883]
[1732029968272,0.108936,91797.0,91788.0,0.217893]
[1732029968559,0.217848,91807.0,91788.0,0.217893]
[1732029968787,0.108941,91793.0,91780.0,0.108956]
[1732029969031,0.01,91799.0,91776.0,0.16381805]
[1732029969250,0.023,91796.0,91776.0,0.38173805]
[1732029969464,0.023,91796.0,91776.0,0.16381805]
[1732029969465,0.02374722,91795.0,91776.0,0.16381805]
[1732029969683,0.108954,91782.0,91777.0,0.108959]
[1732029969889,0.294681,91793.0,91776.0,0.16381805]
[1732029969890,0.108957,91779.0,91776.0,0.16381805]
[1732029970105,0.02034428,91778.0,91776.0,0.16381805]
[1732029970341,0.217883,91792.0,91775.0,0.217921]
[1732029970342,0.108952,91784.0,91775.0,0.217921]
[1732029970549,0.02375002,91783.0,91779.0,0.108956]
[1732029970759,0.02034652,91782.0,91762.0,0.1]
[1732029970971,0.02034652,91781.0,91771.0,0.16381805]
[1732029971232,0.02034652,91780.0,91778.0,0.108957]
[1732029971431,0.02034549,91779.0,91763.0,0.10906255]
[1732029971664,0.10895,91785.0,91763.0,0.10906255]
[1732029971877,0.02374764,91784.0,91782.0,0.108952]
[1732029972107,0.02034416,91783.0,91763.0,0.10906255]
[1732029972344,0.02034416,91782.0,91778.0,0.217915]
[1732029972547,0.0768,91793.0,91763.0,0.10906255]
[1732029972758,0.02374564,91792.0,91786.0,0.108948]
[1732029972987,0.02374564,91791.0,91771.0,0.16381805]
[1732029973217,0.0458,91802.0,91798.0,0.108934]
[1732029973426,0.56124102,91799.0,91798.0,0.108934]
[1732029973652,0.47124102,91799.0,91798.0,0.108934]
[1732029974527,0.4509,91799.0,91798.0,0.108934]
[1732029975006,0.4509,91799.0,91781.0,0.16381805]
[1732029975225,0.108951,91784.0,91783.0,0.16381805]
[1732029975453,0.108965,91772.0,91771.0,0.16381805]
[1732029975874,0.108965,91772.0,91758.0,0.0214388]
[1732029975875,0.02034435,91772.0,91758.0,0.0214388]
[1732029976080,0.02034435,91771.0,91762.0,0.217955]
[1732029976333,0.0784,91777.0,91769.0,0.217938]
[1732029976560,0.02374373,91776.0,91771.0,0.108966]
[1732029976779,0.0784,91777.0,91769.0,0.108968]
[1732029976780,0.12930186,91775.0,91769.0,0.108968]
[1732029976990,0.217893,91788.0,91771.0,0.16381805]
[1732029977200,0.217893,91788.0,91758.0,0.0214388]
[1732029977201,0.108951,91784.0,91764.0,0.21795]
[1732029977407,0.02033875,91783.0,91782.0,0.0017088]
[1732029977630,0.02033875,91783.0,91782.0,0.1106618]
[1732029977844,0.4509,91789.0,91782.0,0.0017088]
[1732029978077,0.108948,91787.0,91782.0,0.0017088]
[1732029978296,0.10895,91785.0,91782.0,0.0017088]
[1732029978512,0.108948,91787.0,91782.0,0.1106618]
[1732029978762,0.10895,91785.0,91782.0,0.0017088]
[1732029978958,0.217883,91793.0,91782.0,0.0017088]
[1732029979171,0.108952,91783.0,91782.0,0.0017088]
[1732029980217,0.12928473,91783.0,91782.0,0.0017088]
[1732029981090,0.26134728,91783.0,91782.0,0.0017088]
[1732029981339,0.33261831,91783.0,91782.0,0.0017088]
[1732029981558,0.65266506,91783.0,91782.0,0.0017088]
[1732029981793,0.108977,91762.0,91761.0,0.16381805]
[1732029982014,0.38667258,91762.0,91761.0,0.16381805]
[1732029982448,0.217959,91760.0,91750.0,0.16381805]
[1732029982920,0.108984,91756.0,91750.0,0.16381805]
[1732029983128,0.108989,91753.0,91750.0,0.16381805]
[1732029983345,0.10899,91751.0,91744.0,0.29513295]
[1732029983551,0.108992,91750.0,91744.0,0.29513295]
[1732029984016,0.217978,91753.0,91734.0,0.16381805]
[1732029984245,0.108997,91746.0,91740.0,0.109002]
[1732029984482,0.108979,91760.0,91737.0,0.109006]
[1732029984693,0.109,91744.0,91738.0,0.109005]
[1732029984910,0.217986,91749.0,91734.0,0.29466704]
[1732029985161,0.108993,91749.0,91743.0,0.108999]
[1732029985392,0.217974,91754.0,91736.0,0.109008]
[1732029985619,0.108991,91751.0,91736.0,0.109008]
[1732029985872,0.108991,91751.0,91746.0,0.108996]
[1732029986307,0.217961,91760.0,91745.0,0.217995]
[1732029986576,0.0455,91762.0,91746.0,0.2728806]
[1732029986800,0.16381805,91763.0,91746.0,0.10906255]
[1732029987260,0.16381805,91763.0,91759.0,0.10898]
[1732029987482,0.108967,91771.0,91766.0,0.108972]
[1732029987737,0.108965,91773.0,91746.0,0.10906255]
[1732029987954,0.0808,91775.0,91767.0,0.10897]
[1732029988175,0.217915,91779.0,91757.0,0.16381805]
[1732029988431,0.217915,91779.0,91771.0,0.108965]
[1732029988681,0.108959,91778.0,91772.0,0.108964]
[1732029988947,0.217896,91787.0,91760.0,0.217959]
[1732029988948,0.0494,91795.0,91771.0,0.16381805]
[1732029989126,0.0494,91795.0,91760.0,0.217959]
[1732029989127,0.16381805,91788.0,91787.0,0.108947]
[1732029989365,0.108939,91794.0,91790.0,0.108944]
[1732029989633,0.0494,91795.0,91794.0,0.108939]
[1732029989836,0.16581805,91799.0,91774.0,0.217926]
[1732029989837,0.0028545,91799.0,91798.0,0.108934]
[1732029990052,0.0028545,91799.0,91792.0,0.217881]
[1732029990298,0.108934,91798.0,91786.0,0.108948]
[1732029990517,0.0008545,91799.0,91778.0,0.10906255]
[1732029990736,0.0008545,91799.0,91787.0,0.16381805]
[1732029990966,0.0008545,91799.0,91778.0,0.10906255]
[1732029991404,0.0008545,91799.0,91791.0,0.108942]
[1732029991665,0.217869,91798.0,91791.0,0.108942]
[1732029991929,0.217872,91797.0,91778.0,0.217917]
[1732029992155,0.10894,91794.0,91788.0,0.108945]
[1732029992385,0.0008545,91799.0,91779.0,0.217914]
[1732029992597,0.0008545,91799.0,91766.0,0.227944]
[1732029992598,0.108945,91789.0,91781.0,0.21791]
[1732029992824,0.108945,91789.0,91780.0,0.217911]
[1732029992825,0.108945,91789.0,91784.0,0.10895]
[1732029993058,0.108943,91791.0,91785.0,0.10895]
[1732029993267,0.0008545,91799.0,91780.0,0.217911]
[1732029993268,0.0008545,91799.0,91780.0,0.108955]
[1732029993495,0.0008545,91799.0,91779.0,0.16381805]
[1732029993705,0.108948,91787.0,91781.0,0.108954]
[1732029993923,0.108949,91786.0,91781.0,0.108955]
[1732029994174,0.108943,91791.0,91781.0,0.21791]
[1732029994416,0.0008545,91799.0,91784.0,0.10895]
[1732029994621,0.0008545,91799.0,91781.0,0.16381805]
[1732029994875,0.0008545,91799.0,91783.0,0.217904]
[1732029994876,0.16381805,91798.0,91783.0,0.217904]
[1732029995088,0.16381805,91798.0,91779.0,0.16381805]
[1732029995089,0.217872,91797.0,91779.0,0.16381805]
[1732029995341,0.217872,91797.0,91769.0,0.01]
[1732029995342,0.13206255,91796.0,91757.0,0.16381805]
[1732029995589,0.108938,91796.0,91783.0,0.108952]
[1732029995798,0.1097885,91799.0,91795.0,0.108937]
[1732029996053,0.0008545,91799.0,91798.0,0.108934]
[1732029996691,0.0008545,91799.0,91783.0,0.1]
[1732029996962,0.0008545,91799.0,91798.0,0.108934]
[1732029999280,0.0008545,91799.0,91798.0,0.1305502]
[1732030000625,0.0008545,91799.0,91798.0,0.108934]
[1732030003528,0.07552695,91814.0,91791.0,0.02146783]
[1732030003737,0.07552695,91814.0,91806.0,0.21785]
[1732030003981,0.07552695,91814.0,91810.0,0.10892]
[1732030004206,0.5606699,91815.0,91810.0,0.10892]
[1732030004654,0.5606699,91815.0,91811.0,0.108918]
[1732030004881,0.4517549,91815.0,91808.0,0.217845]
[1732030005114,0.4517549,91815.0,91810.0,0.10892]
[1732030005364,0.0008549,91815.0,91814.0,0.108915]
[1732030006246,0.0008549,91815.0,91810.0,0.217841]
[1732030006533,0.0008549,91815.0,91804.0,0.16381805]
[1732030006746,0.10892,91811.0,91806.0,0.108924]
[1732030007065,0.217835,91813.0,91803.0,0.217856]
[1732030007066,0.217835,91813.0,91807.0,0.108924]
[1732030007203,0.1097699,91815.0,91805.0,0.16381805]
[1732030007418,0.0008549,91815.0,91810.0,0.10892]
[1732030007657,0.1097689,91815.0,91810.0,0.10892]
[1732030008126,0.108916,91814.0,91810.0,0.10892]
[1732030008386,0.0008549,91815.0,91804.0,0.217853]
[1732030008617,0.108917,91813.0,91808.0,0.108921]
[1732030009092,0.108916,91814.0,91809.0,0.108921]
[1732030009318,0.0008549,91815.0,91814.0,0.108915]
[1732030009976,0.0008549,91815.0,91813.0,0.108916]
[1732030010202,0.0008549,91815.0,91804.0,0.217855]
[1732030010447,0.0008549,91815.0,91803.0,0.217857]
[1732030010448,0.0008549,91815.0,91812.0,0.108917]
[1732030010901,0.0008549,91815.0,91810.0,0.21784]
[1732030011108,0.0008549,91815.0,91803.0,0.217857]
[1732030011322,0.0008549,91815.0,91812.0,0.108917]
[1732030011542,0.0008549,91815.0,91806.0,0.21785]
[1732030011543,0.0008549,91815.0,91814.0,0.108915]
[1732030018543,0.3651748,91826.0,91822.0,0.108905]
[1732030018981,0.108903,91825.0,91820.0,0.108907]
[1732030019196,0.3651748,91826.0,91821.0,0.108906]
[1732030019420,0.3651748,91826.0,91821.0,0.217813]
[1732030019632,0.3651748,91826.0,91818.0,0.21782]
[1732030019857,0.3651748,91826.0,91823.0,0.108904]
[1732030020081,0.3651748,91826.0,91815.0,0.16381805]
[1732030020082,0.4740768,91826.0,91815.0,0.16381805]
[1732030020325,0.4740768,91826.0,91816.0,0.217826]
[1732030020550,0.4740768,91826.0,91818.0,0.217822]
[1732030020770,0.0008548,91827.0,91815.0,0.16381805]
[1732030020986,0.108903,91825.0,91820.0,0.108908]
[1732030021238,0.0008548,91827.0,91818.0,0.108911]
[1732030021452,0.0008548,91827.0,91815.0,0.16381805]
[1732030021676,0.0008548,91827.0,91816.0,0.108913]
[1732030021913,0.0008548,91827.0,91825.0,0.108902]
[1732030022145,0.0008548,91827.0,91826.0,0.108901]
[1732030022601,0.0008548,91827.0,91825.0,0.108902]
[1732030022836,0.0008548,91827.0,91826.0,0.108901]
[1732030025049,0.0008548,91827.0,91820.0,0.217816]
[1732030025274,0.0008548,91827.0,91822.0,0.108905]
[1732030025491,0.0008548,91827.0,91821.0,0.217812]
[1732030025722,0.0008548,91827.0,91816.0,0.217826]
[1732030025925,0.0008548,91827.0,91825.0,0.108902]
[1732030026149,0.0008548,91827.0,91823.0,0.108905]
[1732030026416,0.0008548,91827.0,91816.0,0.217826]
[1732030027054,0.0008548,91827.0,91814.0,0.0017088]
[1732030027274,0.002,91826.0,91814.0,0.0017088]
[1732030027508,0.108914,91815.0,91814.0,0.0017088]
[1732030028435,0.217816,91821.0,91814.0,0.0017088]
[1732030028436,0.023,91824.0,91814.0,0.0017088]
[1732030028684,0.3651748,91825.0,91814.0,0.0017088]
[1732030029184,0.02037129,91824.0,91815.0,0.16381805]
[1732030029420,0.0008548,91827.0,91815.0,0.16381805]
[1732030029421,0.02037129,91823.0,91815.0,0.16381805]
[1732030029664,0.0008548,91827.0,91814.0,0.0017088]
[1732030029900,0.0008548,91827.0,91814.0,0.11077135]
[1732030030136,0.1097548,91827.0,91814.0,0.11077135]
[1732030030348,0.0008548,91827.0,91814.0,0.11077135]
[1732030031038,0.108903,91825.0,91814.0,0.0017088]
[1732030031264,0.108902,91826.0,91814.0,0.0017088]
[1732030031489,0.0008548,91827.0,91814.0,0.1106238]
[1732030031735,0.1097558,91827.0,91814.0,0.0017088]
[1732030031969,0.0008548,91827.0,91818.0,0.10891]
[1732030032201,0.0008548,91827.0,91819.0,0.108909]
[1732030032409,0.0008548,91827.0,91819.0,0.12751698]
[1732030032841,0.0008548,91827.0,91819.0,0.23642598]
[1732030033264,0.0008548,91827.0,91819.0,0.12751698]
[1732030033481,0.16385805,91835.0,91819.0,0.12751698]
[1732030033925,0.108908,91821.0,91819.0,0.12751698]
[1732030034374,0.217811,91823.0,91819.0,0.12751698]
[1732030034579,0.108906,91822.0,91819.0,0.12751698]
[1732030035005,0.108907,91821.0,91819.0,0.12751698]
[1732030036104,0.108905,91823.0,91819.0,0.12751698]
[1732030036861,0.108907,91821.0,91819.0,0.12751698]
[1732030037062,0.108906,91823.0,91819.0,0.12751698]
[1732030037272,0.217803,91826.0,91819.0,0.12751698]
[1732030037494,0.1097603,91822.0,91819.0,0.12751698]
[1732030037921,0.0008543,91822.0,91819.0,0.12751698]
[1732030038666,0.0008543,91822.0,91821.0,0.108907]
[1732030039131,0.0008543,91822.0,91821.0,0.20642405]
[1732030039345,0.0008543,91822.0,91821.0,0.108907]
[1732030039781,0.0008543,91822.0,91819.0,0.34533598]
[1732030040013,0.0008543,91822.0,91820.0,0.108907]
[1732030040244,0.0008543,91822.0,91819.0,0.33411296]
[1732030040245,0.0008543,91822.0,91819.0,0.23657953]
[1732030040886,0.108908,91821.0,91819.0,0.10906255]
[1732030041101,0.108909,91820.0,91819.0,0.12751698]
[1732030041583,0.108909,91819.0,91818.0,0.0017086]
[1732030047024,0.58314635,91819.0,91818.0,0.0017086]
[1732030047224,0.58514635,91819.0,91818.0,0.0017086]
[1732030047469,0.63070614,91819.0,91818.0,0.0017086]
[1732030047717,0.69940362,91819.0,91818.0,0.0017086]
[1732030048161,0.69940362,91819.0,91784.0,0.09763695]
[1732030048162,0.10894,91793.0,91784.0,0.09763695]
[1732030048390,0.217878,91795.0,91782.0,0.16381805]
[1732030048626,0.108957,91779.0,91777.0,0.0017096]
[1732030048875,0.108958,91778.0,91777.0,0.0017096]
[1732030049592,0.3651748,91794.0,91777.0,0.12922658]
[1732030049842,0.16381805,91793.0,91787.0,0.12751698]
[1732030050086,0.16381805,91803.0,91787.0,0.12751698]
[1732030050562,0.108943,91791.0,91787.0,0.12751698]
[1732030051020,0.16381805,91793.0,91777.0,0.22686353]
[1732030051282,0.108958,91778.0,91777.0,0.0017096]
[1732030052911,0.13106733,91778.0,91777.0,0.0017096]
[1732030055746,0.02210933,91778.0,91777.0,0.0017096]
[1732030055954,0.3651748,91785.0,91778.0,0.108958]
[1732030056160,0.4741248,91785.0,91783.0,0.12751698]
[1732030056390,0.38658862,91785.0,91784.0,0.108951]
[1732030056622,0.38658862,91785.0,91783.0,0.12751698]
[1732030056854,0.217905,91784.0,91777.0,0.0017096]
[1732030057085,0.108958,91778.0,91777.0,0.0017096]
[1732030058020,0.36502055,91778.0,91777.0,0.0017096]
[1732030058219,0.47502055,91778.0,91777.0,0.0017096]
[1732030058439,0.84019535,91778.0,91777.0,0.0017096]
[1732030059803,0.96771233,91778.0,91777.0,0.0017096]
[1732030060011,0.002,91762.0,91754.0,0.16381805]
[1732030060237,0.131985,91755.0,91754.0,0.16381805]
[1732030060459,0.24304755,91755.0,91754.0,0.16381805]
[1732030060679,0.110995,91747.0,91746.0,0.001709]
[1732030060884,0.108995,91747.0,91746.0,0.001709]
[1732030061729,0.21694589,91747.0,91746.0,0.001709]
[1732030061959,0.37624589,91747.0,91746.0,0.001709]
[1732030062186,0.39797011,91747.0,91746.0,0.001709]
[1732030062424,0.49797011,91747.0,91746.0,0.001709]
[1732030062823,0.86514491,91747.0,91746.0,0.001709]
[1732030063030,0.85514491,91747.0,91746.0,0.001709]
[1732030063260,0.76514491,91747.0,91746.0,0.001709]
[1732030063496,0.74726157,91747.0,91746.0,0.001709]
[1732030063725,0.85625657,91747.0,91746.0,0.001709]
[1732030064147,0.83125657,91747.0,91746.0,0.001709]
[1732030065299,0.86625657,91747.0,91746.0,0.001709]
[1732030066443,0.85425657,91747.0,91746.0,0.001709]
[1732030068625,0.75425657,91747.0,91746.0,0.001709]
[1732030068845,0.54469402,91747.0,91746.0,0.001709]
[1732030070359,0.49589402,91747.0,91746.0,0.001709]
[1732030073093,0.38689902,91747.0,91746.0,0.001709]
[1732030074173,0.49589402,91747.0,91746.0,0.001709]
[1732030074390,0.4741698,91747.0,91746.0,0.001709]
[1732030074647,0.3651748,91747.0,91746.0,0.110705]
[1732030074882,0.3651748,91770.0,91746.0,0.001709]
[1732030075100,0.108976,91764.0,91746.0,0.001709]
[1732030075317,0.3651748,91770.0,91746.0,0.001709]
[1732030075318,0.3651748,91770.0,91748.0,0.16381805]
[1732030075538,0.108973,91766.0,91756.0,0.217967]
[1732030075736,0.16381805,91767.0,91748.0,0.2728806]
[1732030075946,0.16381805,91767.0,91749.0,0.01]
[1732030076173,0.108975,91764.0,91757.0,0.108983]
[1732030076370,0.108975,91764.0,91758.0,0.108982]
[1732030076614,0.108975,91764.0,91756.0,0.217969]
[1732030076615,0.217936,91770.0,91752.0,0.217978]
[1732030076830,0.108976,91764.0,91757.0,0.108983]
[1732030077043,0.47423735,91776.0,91752.0,0.108989]
[1732030077256,0.108977,91763.0,91756.0,0.108983]
[1732030077491,0.02027792,91775.0,91748.0,0.17381805]
[1732030077492,0.023,91775.0,91748.0,0.17381805]
[1732030077719,0.1293404,91774.0,91748.0,0.17381805]
[1732030077944,0.1293404,91774.0,91754.0,0.108986]
[1732030077945,0.10898,91760.0,91754.0,0.108986]
[1732030078179,0.023,91773.0,91749.0,0.217986]
[1732030078405,0.10898,91760.0,91754.0,0.108986]
[1732030078647,0.10898,91760.0,91748.0,0.17381805]
[1732030078648,0.10906255,91772.0,91750.0,0.217983]
[1732030078874,0.16381805,91767.0,91748.0,0.17381805]
[1732030079094,0.108979,91761.0,91754.0,0.108985]
[1732030079758,0.326922,91765.0,91754.0,0.108985]
[1732030079996,0.02185548,91776.0,91755.0,0.10906255]
[1732030080225,0.16381805,91771.0,91768.0,0.108969]
[1732030080477,0.16381805,91771.0,91757.0,0.217967]
[1732030080702,0.217914,91780.0,91769.0,0.108968]
[1732030080924,0.02029148,91779.0,91774.0,0.108963]
[1732030081147,0.18584475,91783.0,91750.0,0.217983]
[1732030081148,0.217949,91765.0,91750.0,0.217983]
[1732030081373,0.108981,91759.0,91758.0,0.16381805]
[1732030081623,0.023,91773.0,91748.0,0.16381805]
[1732030081624,0.0787,91767.0,91749.0,0.108993]
[1732030081822,0.21795,91764.0,91748.0,0.16381805]
[1732030082060,0.108988,91753.0,91748.0,0.16381805]
[1732030082313,0.108995,91747.0,91746.0,0.001709]
[1732030083261,0.12930745,91747.0,91746.0,0.001709]
[1732030083516,0.23341974,91747.0,91746.0,0.001709]
[1732030083739,0.19950745,91747.0,91746.0,0.001709]
[1732030083959,0.23342034,91747.0,91746.0,0.001709]
[1732030084203,0.25487508,91747.0,91746.0,0.001709]
[1732030085606,0.22236705,91747.0,91746.0,0.001709]
[1732030086022,0.19864974,91747.0,91746.0,0.001709]
[1732030086289,0.21897365,91747.0,91746.0,0.001709]
[1732030086510,0.25490921,91747.0,91746.0,0.001709]
[1732030086934,0.58755339,91747.0,91746.0,0.001709]
[1732030087146,0.62010578,91747.0,91746.0,0.001709]
[1732030088270,0.6201073,91747.0,91746.0,0.001709]
[1732030091131,0.7292063,91747.0,91746.0,0.001709]
[1732030091350,0.8061063,91747.0,91746.0,0.001709]
[1732030091572,0.8081063,91747.0,91746.0,0.001709]
[1732030092032,0.8061063,91747.0,91746.0,0.001709]
[1732030092494,0.9061063,91747.0,91746.0,0.001709]
[1732030093391,0.7971113,91747.0,91746.0,0.001709]
[1732030093608,0.9061063,91747.0,91746.0,0.001709]
[1732030094894,0.9161063,91747.0,91746.0,0.001709]
[1732030095743,0.9081063,91747.0,91746.0,0.001709]
[1732030095958,0.55194375,91747.0,91746.0,0.001709]
[1732030096381,0.51938111,91747.0,91746.0,0.001709]
[1732030097276,0.54238111,91747.0,91746.0,0.001709]
[1732030097914,0.65144362,91747.0,91746.0,0.001709]
[1732030098172,0.69598737,91747.0,91746.0,0.001709]
[1732030098389,0.68398737,91747.0,91746.0,0.001709]
[1732030099281,0.57492482,91747.0,91746.0,0.001709]
[1732030099693,0.54238107,91747.0,91746.0,0.001709]
[1732030100593,0.54238101,91747.0,91746.0,0.001709]
[1732030101018,0.57491253,91747.0,91746.0,0.001709]
[1732030101251,0.62768709,91747.0,91746.0,0.001709]
[1732030101472,0.65142367,91747.0,91746.0,0.001709]
[1732030101711,0.62768709,91747.0,91746.0,0.001709]
[1732030102360,0.38662954,91747.0,91746.0,0.001709]
[1732030102578,0.38662954,91747.0,91746.0,0.110705]
[1732030102802,0.38662954,91747.0,91746.0,0.001709]
[1732030103030,0.3651748,91747.0,91746.0,0.001709]
[1732030103730,0.3881748,91747.0,91746.0,0.001709]
[1732030104166,0.4971698,91747.0,91746.0,0.001709]
[1732030104375,0.3881748,91747.0,91746.0,0.001709]
[1732030104830,0.023,91747.0,91746.0,0.001709]
[1732030105031,0.131995,91747.0,91746.0,0.001709]
[1732030106763,0.023,91748.0,91746.0,0.001709]
[1732030106964,0.217961,91760.0,91746.0,0.001709]
[1732030106965,0.02033292,91759.0,91746.0,0.001709]
[1732030107170,0.16381805,91762.0,91746.0,0.001709]
[1732030107414,0.108995,91747.0,91746.0,0.001709]
[1732030107604,0.108993,91749.0,91746.0,0.001709]
[1732030107812,0.47423735,91761.0,91746.0,0.001709]
[1732030108030,0.0008547,91747.0,91746.0,0.110705]
[1732030108446,0.023,91751.0,91746.0,0.110705]
[1732030108666,0.38178005,91760.0,91746.0,0.001709]
[1732030108667,0.108992,91750.0,91746.0,0.001709]
[1732030109048,0.108991,91750.0,91746.0,0.001709]
[1732030109279,0.217967,91757.0,91746.0,0.001709]
[1732030109477,0.16381805,91760.0,91746.0,0.001709]
[1732030109697,0.217962,91759.0,91746.0,0.001709]
[1732030109940,0.3651748,91761.0,91756.0,0.108983]
[1732030110195,0.0222271,91762.0,91747.0,0.16381805]
[1732030110196,0.0222271,91762.0,91761.0,0.108978]
[1732030110387,0.16467305,91771.0,91759.0,0.217962]
[1732030110660,0.16467305,91771.0,91759.0,0.09771098]
[1732030110661,0.000855,91771.0,91759.0,0.09771098]
[1732030110870,0.000855,91771.0,91770.0,0.108968]
[1732030111579,0.217895,91787.0,91770.0,0.108968]
[1732030111580,0.0008546,91793.0,91771.0,0.0808]
[1732030111858,0.01,91815.0,91770.0,0.11906255]
[1732030111859,3e-07,91822.0,91821.0,0.108907]
[1732030112111,3e-07,91822.0,91821.0,0.5281034]
[1732030112334,0.0008552,91836.0,91834.0,0.118892]
[1732030112574,0.0008551,91856.0,91838.0,0.47427506]
[1732030112804,0.0008551,91856.0,91838.0,0.67847523]
[1732030113259,0.0008551,91856.0,91838.0,0.63515977]
[1732030113518,0.0008551,91856.0,91838.0,0.34658103]
[1732030113745,0.108869,91853.0,91838.0,0.24658103]
[1732030113965,0.21815,91849.0,91838.0,0.12769403]
[1732030114188,0.108885,91840.0,91829.0,0.12769403]
[1732030114400,0.217762,91844.0,91833.0,0.16381805]
[1732030114841,0.108886,91840.0,91833.0,0.16381805]
[1732030115102,0.21815,91849.0,91827.0,0.18938042]
[1732030115103,0.217765,91842.0,91827.0,0.18938042]
[1732030115329,0.217765,91842.0,91833.0,0.16381805]
[1732030115330,0.023,91842.0,91833.0,0.16381805]
[1732030115775,0.1097411,91839.0,91833.0,0.16381805]
[1732030116006,0.023,91836.0,91833.0,0.16381805]
[1732030116238,0.131892,91834.0,91833.0,0.16381805]
[1732030116498,0.023,91827.0,91818.0,0.18938042]
[1732030116723,0.023,91827.0,91826.0,0.16381805]
[1732030116724,0.1319,91827.0,91826.0,0.16381805]
[1732030116974,0.023,91827.0,91818.0,0.18938042]
[1732030117240,0.2178,91828.0,91818.0,0.18938042]
[1732030117241,0.023,91821.0,91818.0,0.18938042]
[1732030117491,0.023,91827.0,91818.0,0.18938042]
[1732030117768,0.023,91827.0,91802.0,0.108929]
[1732030117769,0.217845,91809.0,91800.0,0.16381805]
[1732030117972,0.47423735,91826.0,91800.0,0.16381805]
[1732030117973,0.131931,91801.0,91800.0,0.16381805]
[1732030118474,0.023,91790.0,91771.0,0.18938042]
[1732030118684,0.47423735,91801.0,91758.0,0.17381805]
[1732030118685,0.131955,91781.0,91758.0,0.16381805]
[1732030119194,0.24101755,91781.0,91758.0,0.16381805]
[1732030119198,0.131969,91769.0,91758.0,0.16381805]
[1732030119417,0.60620635,91769.0,91758.0,0.16381805]
[1732030120150,0.131981,91759.0,91758.0,0.16381805]
[1732030120395,0.023,91759.0,91758.0,0.16381805]
[1732030120630,0.131981,91759.0,91758.0,0.16381805]
[1732030120854,0.023,91761.0,91758.0,0.16381805]
[1732030121320,0.023,91763.0,91746.0,0.001709]
[1732030121769,0.023,91759.0,91746.0,0.001709]
[1732030122020,0.023,91765.0,91746.0,0.001709]
[1732030122243,0.023,91755.0,91746.0,0.001709]
[1732030122475,0.241995,91747.0,91746.0,0.001709]
[1732030122702,0.241995,91747.0,91722.0,0.001708]
[1732030122703,0.44339242,91733.0,91732.0,2e-07]
[1732030122978,0.231019,91727.0,91722.0,0.001708]
[1732030123255,0.231019,91727.0,91702.0,0.16552625]
[1732030123256,0.121047,91703.0,91702.0,0.0017082]
[1732030123503,0.78361777,91703.0,91702.0,0.0017082]
[1732030123725,0.78361777,91703.0,91690.0,8e-07]
[1732030123726,0.129061,91691.0,91690.0,8e-07]
[1732030123982,0.129061,91691.0,91634.0,0.0017084]
[1732030123983,0.229076,91679.0,91634.0,0.0017084]
[1732030124233,0.119104,91655.0,91634.0,0.0017084]
[1732030124496,0.01,91644.0,91634.0,0.0017084]
[1732030124718,0.218192,91663.0,91634.0,0.0017084]
[1732030124719,0.109128,91635.0,91634.0,0.0017084]
[1732030124939,0.21819055,91635.0,91634.0,0.0017084]
[1732030125155,0.24119055,91635.0,91634.0,0.0017084]
[1732030125629,0.72636535,91635.0,91634.0,0.0017084]
[1732030126560,0.129132,91632.0,91631.0,4e-07]
[1732030126821,0.129132,91632.0,91627.0,0.9105164]
[1732030126822,0.54420892,91628.0,91627.0,0.9105164]
[1732030127057,0.129145,91621.0,91611.0,0.0004]
[1732030127269,0.129156,91612.0,91611.0,0.0004]
[1732030127503,0.33821855,91612.0,91611.0,0.0004]
[1732030127720,0.43192001,91612.0,91611.0,0.0004]
[1732030127967,0.209179,91592.0,91591.0,0.0004]
[1732030128207,0.69341635,91592.0,91591.0,0.0004]
[1732030128664,0.218335,91602.0,91591.0,0.0004]
[1732030128665,0.1,91606.0,91591.0,0.0004]
[1732030128885,0.16381805,91604.0,91591.0,0.0004]
[1732030129121,0.16381805,91619.0,91603.0,0.01]
[1732030129376,0.16381805,91608.0,91607.0,0.01]
[1732030129615,0.16381805,91629.0,91608.0,0.01]
[1732030129858,0.16381805,91616.0,91609.0,0.10906255]
[1732030130068,0.16381805,91628.0,91621.0,0.01]
[1732030130291,0.16381805,91639.0,91624.0,0.109141]
[1732030130292,0.16381805,91629.0,91624.0,0.109141]
[1732030130543,0.16381805,91639.0,91622.0,0.11106255]
[1732030130544,0.16381805,91628.0,91625.0,0.10906255]
[1732030130740,0.16381805,91639.0,91625.0,0.10906255]
[1732030131204,0.38204305,91649.0,91627.0,0.01]
[1732030131467,0.109127,91636.0,91628.0,0.10906255]
[1732030131719,0.218341,91600.0,91581.0,0.01]
[1732030131943,0.1,91627.0,91612.0,0.16381805]
[1732030131944,0.109154,91613.0,91612.0,0.16381805]
[1732030132184,0.218231,91646.0,91616.0,0.01]